bitfinex/quotes_ETHUSD_20250319
["timestamp","ask_amount","ask_price","bid_price","bid_amount"]
[1742404508657,9.69581,2047.6,2047.2,4.88471]
[1742404508859,9.69581,2047.6,2047.2,9.76927]
[1742404509156,9.69581,2047.6,2047.2,4.88456]
[1742404509559,9.69581,2047.6,2047.2,9.76911]
[1742404509763,4.03954767,2047.5,2047.1,4.88493]
[1742404510062,4.88453,2047.3,2047.0,0.7711]
[1742404510225,4.88482,2047.2,2046.8,5.68]
[1742404510960,4.88482,2047.2,2046.9,4.88535]
[1742404512069,8.92407767,2047.3,2046.9,9.77064]
[1742404512250,8.92407767,2047.3,2046.9,4.88529]
[1742404512837,0.8281,2047.4,2047.1,4.88495]
[1742404513043,0.8281,2047.4,2047.1,4.88485]
[1742404513240,5.71241,2047.4,2047.0,9.77019]
[1742404513443,5.71241,2047.4,2047.0,9.77011]
[1742404513640,0.8192,2047.6,2047.1,5.64075]
[1742404513865,5.70315,2047.6,2047.2,4.88451]
[1742404514230,9.74269767,2047.6,2047.2,4.88451]
[1742404514946,4.88404,2047.5,2047.2,4.88451]
[1742404515255,9.76828,2047.5,2047.1,5.6407]
[1742404515454,4.88404,2047.5,2047.1,5.6407]
[1742404515855,4.88404,2047.5,2047.1,10.52548]
[1742404516468,4.03954767,2047.4,2047.1,5.64058]
[1742404518161,4.85874767,2047.6,2047.2,4.88457]
[1742404518486,4.85874767,2047.6,2047.3,4.88439]
[1742404518652,9.74267767,2047.6,2047.2,4.88467]
[1742404518846,14.62657767,2047.6,2047.2,4.88457]
[1742404519276,9.74264767,2047.6,2047.2,4.88457]
[1742404519662,4.85874767,2047.6,2047.3,4.88428]
[1742404519866,4.03954767,2047.8,2047.4,4.88415]
[1742404520080,0.7567,2048.0,2047.6,4.88363]
[1742404520586,4.88306,2047.9,2047.5,9.76783]
[1742404520787,4.88306,2047.9,2047.6,4.88375]
[1742404520954,4.88306,2047.9,2047.5,4.88385]
[1742404521351,4.88306,2047.9,2047.5,9.76767]
[1742404521554,4.88306,2047.9,2047.6,4.88371]
[1742404521749,9.67913767,2048.0,2047.6,4.88371]
[1742404522063,11.61643144,2048.0,2047.6,4.88371]
[1742404522364,4.88313,2047.9,2047.6,4.88371]
[1742404522790,11.61643144,2048.0,2047.6,4.88371]
[1742404522956,9.67913767,2048.0,2047.6,4.88371]
[1742404523296,4.8831,2047.9,2047.6,4.88371]
[1742404524090,4.8831,2047.9,2047.5,4.88397]
[1742404524091,9.76632,2047.9,2047.5,4.88397]
[1742404524291,4.8831,2047.9,2047.6,4.88373]
[1742404524592,9.67912767,2048.0,2047.6,4.88361]
[1742404525053,4.88307,2047.9,2047.6,4.88361]
[1742404526289,10.48487414,2048.0,2047.6,4.88361]
[1742404526454,15.36787414,2048.0,2047.6,4.88361]
[1742404527368,10.48487414,2048.0,2047.6,9.76724]
[1742404527565,4.811,2048.1,2047.8,4.88314]
[1742404527791,4.811,2048.1,2047.9,4.88294]
[1742404528001,14.62531767,2048.2,2047.8,4.88322]
[1742404528288,4.88265,2048.1,2047.7,5.70999]
[1742404528452,9.76541,2048.1,2047.7,5.70991]
[1742404528652,6.88123577,2048.1,2047.8,4.88328]
[1742404529599,1.99858577,2048.1,2047.7,0.8265]
[1742404529756,1.99858577,2048.1,2047.8,4.8832]
[1742404529956,1.99858577,2048.1,2047.9,4.88297]
[1742404530199,1.99858577,2048.1,2047.8,4.88323]
[1742404530406,9.74278767,2048.2,2047.8,4.88317]
[1742404530552,4.8832,2047.9,2047.5,0.8073]
[1742404530758,4.88402,2047.5,2047.2,1.79994813]
[1742404531054,4.03954767,2047.4,2047.1,4.88493]
[1742404531276,5.644,2047.5,2047.1,9.76963]
[1742404531487,5.644,2047.5,2047.2,4.88468]
[1742404531800,4.03954767,2047.4,2047.1,4.88485]
[1742404531974,4.03954767,2047.4,2047.2,4.8845]
[1742404532161,4.03954767,2047.4,2047.2,4.8847]
[1742404532689,4.03954767,2047.4,2047.1,4.88485]
[1742404532992,4.03954767,2047.4,2047.1,4.88481]
[1742404533297,4.03954767,2047.4,2047.2,4.88462]
[1742404533485,4.03954767,2047.4,2047.1,9.76962]
[1742404533686,4.03954767,2047.4,2047.1,4.88481]
[1742404533992,0.7599,2047.5,2047.2,4.88462]
[1742404534694,5.64392,2047.5,2047.1,4.88483]
[1742404534873,5.64392,2047.5,2047.1,4.88477]
[1742404535064,5.64392,2047.5,2047.1,9.76958]
[1742404535878,10.52814,2047.5,2047.1,4.88477]
[1742404536078,5.64392,2047.5,2047.1,9.76959]
[1742404536316,4.88424,2047.4,2047.1,4.88477]
[1742404537011,8.92378767,2047.4,2047.0,4.88504]
[1742404537373,4.88448,2047.3,2047.0,4.88504]
[1742404537783,8.92378767,2047.4,2047.1,4.88486]
[1742404538017,5.64393,2047.5,2047.2,4.88464]
[1742404538018,0.7599,2047.5,2047.2,4.88464]
[1742404538713,5.64392,2047.5,2047.2,4.88464]
[1742404538915,5.64392,2047.5,2047.1,4.88493]
[1742404539072,10.52808,2047.5,2047.1,4.88493]
[1742404539415,4.88427,2047.4,2047.1,4.88493]
[1742404540614,9.76875,2047.4,2047.0,6.5264464]
[1742404540779,4.88457,2047.3,2047.0,6.5264464]
[1742404541427,4.03954767,2047.2,2046.9,6.06]
[1742404541585,4.03954767,2047.2,2046.6,4.88605]
[1742404541586,4.88544,2046.9,2046.6,4.88605]
[1742404541781,4.88544,2046.9,2046.6,7.88605]
[1742404542033,5.71744,2046.9,2046.6,7.88605]
[1742404542395,0.832,2046.9,2046.6,4.88605]
[1742404542600,0.832,2046.9,2046.6,4.88598]
[1742404542916,0.8301,2047.1,2046.8,4.88548]
[1742404543122,4.88498,2047.1,2046.8,4.88548]
[1742404543483,9.77015,2047.1,2046.7,4.88588]
[1742404543934,4.88524,2047.0,2046.7,4.88588]
[1742404544425,4.88498,2047.1,2046.7,4.8858]
[1742404544642,9.77016,2047.1,2046.7,4.88574]
[1742404544985,4.8852,2047.0,2046.7,4.88574]
[1742404545334,4.88544,2046.9,2046.6,4.88613]
[1742404545819,4.88544,2046.9,2046.5,9.77263]
[1742404546022,4.88544,2046.9,2046.5,12.01205249]
[1742404546520,5.69115,2046.7,2046.4,4.88655]
[1742404546683,5.69115,2046.7,2046.3,4.88683]
[1742404546883,5.69115,2046.7,2046.2,13.9471]
[1742404546884,4.88651,2046.5,2046.2,4.8871]
[1742404547680,4.88651,2046.5,2046.1,5.65592]
[1742404547930,5.69115,2046.7,2046.3,4.88666]
[1742404548127,0.8052,2046.7,2046.4,4.88663]
[1742404548291,0.8052,2046.7,2046.4,9.77311]
[1742404548523,0.8052,2046.7,2046.4,4.88648]
[1742404548771,0.8052,2046.7,2046.4,4.88654]
[1742404549053,0.8052,2046.7,2046.5,4.88638]
[1742404549255,4.80784767,2046.9,2046.5,4.88615]
[1742404549463,9.69340767,2046.9,2046.5,4.88629]
[1742404549759,14.57899767,2046.9,2046.5,4.88629]
[1742404549966,9.69340767,2046.9,2046.5,4.88625]
[1742404550151,4.80784767,2046.9,2046.6,4.88604]
[1742404550320,3.55,2047.0,2046.7,4.88578]
[1742404550526,3.0,2047.0,2046.7,4.88573]
[1742404550730,5.6234,2047.1,2046.8,4.8856]
[1742404551025,5.6234,2047.1,2046.8,9.77104]
[1742404551249,5.6234,2047.1,2046.8,4.88551]
[1742404551621,5.6234,2047.1,2046.8,9.77106]
[1742404551819,17.6533,2047.3,2046.8,1.054016]
[1742404552163,22.53791,2047.3,2046.9,9.77055]
[1742404552344,5.64991,2047.3,2046.9,9.77055]
[1742404552546,10.53456,2047.3,2046.9,4.88527]
[1742404552862,4.88476,2047.2,2046.9,4.88527]
[1742404553045,3.7653,2047.3,2046.9,4.88527]
[1742404553248,17.57409767,2047.3,2046.9,4.88527]
[1742404553758,4.88474,2047.2,2046.9,4.88527]
[1742404553961,12.68941767,2047.3,2046.9,4.88527]
[1742404554157,17.57407767,2047.3,2046.9,4.88527]
[1742404554336,4.88481,2047.2,2046.8,4.88566]
[1742404554696,9.76969,2047.2,2046.8,4.88566]
[1742404554848,9.76969,2047.2,2046.6,0.9833321]
[1742404554849,0.8221,2046.9,2046.6,4.8861]
[1742404555061,0.8221,2046.9,2046.6,4.88599]
[1742404555233,5.70707,2047.1,2046.7,4.88581]
[1742404555436,0.8221,2047.1,2046.8,4.88544]
[1742404555838,4.03954767,2047.2,2046.9,4.88526]
[1742404556162,14.01314544,2047.3,2046.9,4.88526]
[1742404556330,14.01314544,2047.3,2047.0,4.88509]
[1742404556725,0.7696,2047.3,2047.1,9.76972]
[1742404556932,8.84754767,2047.4,2047.1,4.88484]
[1742404557235,5.68745,2047.7,2047.1,0.7592]
[1742404557461,4.808,2047.6,2047.3,4.88429]
[1742404558669,4.808,2047.6,2047.4,4.88414]
[1742404558870,4.808,2047.6,2047.3,4.88429]
[1742404559041,0.8039,2047.7,2047.4,4.88417]
[1742404559366,0.647192,2047.7,2047.5,4.88398]
[1742404559562,0.647192,2047.7,2047.4,4.88417]
[1742404559772,5.530852,2047.7,2047.3,4.88439]
[1742404559980,5.530852,2047.7,2047.3,4.88433]
[1742404560274,5.530852,2047.7,2047.4,4.8842]
[1742404560839,9.47343767,2047.6,2047.2,4.88454]
[1742404561038,4.58954767,2047.4,2047.1,4.88487]
[1742404561648,9.47380767,2047.4,2047.1,4.88487]
[1742404561962,4.58954767,2047.4,2047.1,9.76966]
[1742404562307,9.47380767,2047.4,2047.0,10.94512]
[1742404562572,4.03954767,2047.2,2047.0,6.06]
[1742404562786,5.66508,2047.3,2047.1,4.88473]
[1742404562787,0.7805,2047.3,2047.1,4.88473]
[1742404562935,0.7805,2047.5,2047.0,6.06]
[1742404563142,10.54877,2047.5,2047.1,4.88481]
[1742404563364,0.7805,2047.5,2047.0,6.8204]
[1742404563679,0.7805,2047.5,2047.3,4.88443]
[1742404563849,4.03954767,2047.4,2047.1,4.88494]
[1742404564478,8.92380767,2047.4,2047.0,10.94511]
[1742404564839,8.92380767,2047.4,2047.0,15.83017]
[1742404565173,8.92380767,2047.4,2047.0,10.94506]
[1742404565377,10.86334244,2047.4,2047.0,10.94506]
[1742404565780,10.86334244,2047.4,2047.1,4.88495]
[1742404566141,5.97908244,2047.4,2047.1,4.88485]
[1742404566475,4.03954767,2047.4,2047.1,4.88485]
[1742404566661,0.7805,2047.5,2047.2,4.8846]
[1742404566870,4.03954767,2047.4,2047.1,4.88485]
[1742404567055,4.88456,2047.3,2047.0,10.94518]
[1742404567402,4.03954767,2047.4,2047.0,10.94519]
[1742404567607,8.92388767,2047.4,2047.1,4.88488]
[1742404569276,4.03954767,2047.4,2047.1,4.88488]
[1742404569809,8.92384767,2047.4,2047.1,4.88488]
[1742404569985,4.03954767,2047.4,2047.2,4.88461]
[1742404570409,4.03954767,2047.4,2047.1,9.7697]
[1742404570714,0.7805,2047.5,2046.9,4.03954767]
[1742404570899,0.7805,2047.5,2047.3,4.88434]
[1742404571909,0.8311,2047.7,2047.4,4.88407]
[1742404572068,9.69031,2047.8,2047.5,4.88392]
[1742404572467,9.73544767,2048.1,2047.6,4.8837]
[1742404572705,4.807,2048.0,2047.7,4.88342]
[1742404572922,4.85284767,2048.1,2047.9,4.88293]
[1742404573118,0.8133,2048.3,2048.1,4.88246]
[1742404573411,4.88186,2048.4,2048.1,4.88246]
[1742404573577,9.70175767,2048.5,2048.2,4.88231]
[1742404573777,9.62604767,2048.5,2048.2,4.88231]
[1742404574005,0.7805,2048.5,2048.3,4.88206]
[1742404574197,14.50719767,2048.7,2048.3,4.88203]
[1742404574398,4.03954767,2048.5,2048.3,4.88203]
[1742404574597,4.03954767,2048.5,2048.2,4.88229]
[1742404574815,4.03954767,2048.5,2048.2,9.76445]
[1742404575026,4.03954767,2048.5,2048.2,4.88216]
[1742404575695,4.03954767,2048.5,2048.3,4.88199]
[1742404576086,14.50724767,2048.7,2048.3,4.88199]
[1742404576619,15.46807232,2048.7,2048.3,4.88199]
[1742404577413,15.46807232,2048.7,2048.4,4.88183]
[1742404577615,4.03954767,2048.5,2047.9,7.05745083]
[1742404577781,8.92219767,2048.1,2047.9,6.06]
[1742404577979,8.92219767,2048.1,2047.3,6.06]
[1742404577980,4.88376,2047.7,2047.3,6.06]
[1742404578230,4.03954767,2047.5,2047.4,4.88424]
[1742404578428,0.55,2047.8,2047.5,4.88391]
[1742404578730,4.88403,2047.5,2047.2,0.7658]
[1742404579024,10.27451767,2047.6,2047.2,4.88454]
[1742404579390,10.27454767,2047.6,2047.2,4.88463]
[1742404579595,4.88405,2047.5,2047.2,4.88463]
[1742404579794,10.27454767,2047.6,2047.2,4.8846]
[1742404579795,10.27442767,2047.6,2047.2,4.8846]
[1742404579993,8.92379767,2047.4,2046.9,6.8928]
[1742404580187,4.03954767,2047.4,2047.1,4.88483]
[1742404580501,4.03954767,2047.4,2047.1,9.76966]
[1742404580707,4.03954767,2047.4,2047.1,4.88482]
[1742404580911,4.88405,2047.5,2047.1,4.88482]
[1742404581111,4.88405,2047.5,2047.1,6.5511]
[1742404581326,4.88405,2047.5,2047.1,11.43589]
[1742404581530,4.88405,2047.5,2047.2,4.88464]
[1742404581824,9.76816,2047.5,2047.1,6.55107]
[1742404581992,4.88405,2047.5,2047.1,6.55107]
[1742404582187,4.88405,2047.5,2047.1,11.43587]
[1742404582428,4.88405,2047.5,2047.1,6.55107]
[1742404582931,4.88405,2047.5,2047.2,4.8847]
[1742404583108,4.88405,2047.5,2047.1,6.55113]
[1742404583308,4.88405,2047.5,2047.1,6.55108]
[1742404583512,4.88405,2047.5,2047.2,4.88468]
[1742404583697,10.27443767,2047.6,2047.2,4.88468]
[1742404584119,10.27443767,2047.6,2047.2,4.88458]
[1742404584317,10.27443767,2047.6,2047.2,4.88462]
[1742404584628,1.3511,2047.6,2047.3,4.88439]
[1742404584929,8.92296767,2047.8,2047.3,1.143539]
[1742404585103,8.84454767,2047.8,2047.5,4.88383]
[1742404585530,13.72792767,2047.8,2047.3,6.828289]
[1742404585836,8.92292767,2047.8,2047.4,4.88419]
[1742404586036,4.88448,2047.3,2047.1,6.06]
[1742404586330,4.03954767,2047.2,2047.1,6.06]
[1742404586510,4.03954767,2047.2,2046.9,4.8853]
[1742404586511,4.03954767,2047.2,2046.9,4.88529]
[1742404586839,8.92384767,2047.4,2047.0,4.88519]
[1742404587201,8.92437767,2047.2,2046.8,6.8605]
[1742404587441,8.92487767,2047.0,2046.5,5.84703397]
[1742404587628,4.03954767,2046.8,2046.5,4.88634]
[1742404588000,4.03954767,2046.6,2046.1,11.9372691]
[1742404588339,4.03954767,2046.3,2046.1,10.94723]
[1742404588502,4.03954767,2046.3,2046.1,4.88723]
[1742404588831,8.92610767,2046.5,2046.1,4.88734]
[1742404589032,8.92606767,2046.5,2046.1,4.88734]
[1742404589337,4.03954767,2046.5,2046.1,1.659349]
[1742404589499,4.03954767,2046.5,2046.1,6.546689]
[1742404589704,0.7821,2046.7,2046.4,4.8865]
[1742404589912,5.70934,2046.9,2046.5,4.88638]
[1742404590109,14.63451767,2046.9,2046.4,4.88656]
[1742404590350,4.03954767,2046.7,2046.3,10.94666]
[1742404590640,8.92566767,2046.7,2046.3,6.06]
[1742404590830,0.55,2046.6,2046.3,6.06]
[1742404591257,5.43626,2046.6,2046.3,6.06]
[1742404591711,4.88641,2046.5,2046.3,6.06]
[1742404592236,5.43626,2046.6,2046.3,6.06]
[1742404592446,10.32261,2046.6,2046.3,6.06]
[1742404592838,0.55,2046.6,2046.3,6.06]
[1742404593045,5.43617,2046.6,2046.3,6.06]
[1742404593324,0.55,2046.4,2046.1,4.88724]
[1742404593530,0.55,2046.4,2045.9,1.81327164]
[1742404593730,0.55,2046.4,2046.1,4.88725]
[1742404594028,4.805,2046.7,2046.3,4.88663]
[1742404594337,5.68997,2046.8,2046.4,4.88652]
[1742404594545,9.69046,2046.9,2046.5,5.71066]
[1742404594775,9.69046,2046.9,2046.5,4.88626]
[1742404594956,4.805,2046.9,2046.7,4.88589]
[1742404595134,9.69059,2046.9,2046.5,4.88617]
[1742404595332,4.88568,2046.8,2046.4,4.88651]
[1742404595656,4.88568,2046.8,2046.4,5.946286]
[1742404595968,0.55,2046.6,2046.3,4.88681]
[1742404596665,9.91682845,2046.6,2046.1,10.94724]
[1742404596866,4.88645,2046.5,2046.1,15.83446]
[1742404597269,14.80301845,2046.6,2046.2,4.88708]
[1742404597585,9.91667845,2046.6,2046.2,4.88708]
[1742404597788,0.7625,2046.7,2046.3,0.7955]
[1742404597953,5.64853,2046.7,2046.3,4.88666]
[1742404598449,5.64853,2046.7,2046.3,9.77333]
[1742404598788,5.64853,2046.7,2046.3,4.88666]
[1742404599353,5.64853,2046.7,2046.1,10.94712]
[1742404599354,5.43652,2046.5,2046.1,10.94712]
[1742404599706,5.43652,2046.5,2046.1,13.4898901]
[1742404600480,4.88663,2046.4,2046.1,6.06]
[1742404600650,0.7998,2046.3,2046.0,9.77486]
[1742404600847,0.7998,2046.3,2046.0,4.88741]
[1742404601150,0.7998,2046.3,2045.9,7.88781]
[1742404601351,0.7998,2046.3,2046.1,4.88725]
[1742404603090,0.7998,2046.3,2046.1,4.88722]
[1742404603395,0.7998,2046.3,2046.1,4.88721]
[1742404604861,0.7998,2046.3,2046.1,9.77439]
[1742404605296,0.7998,2046.3,2046.1,4.88718]
[1742404605772,5.68669,2046.3,2046.0,4.88756]
[1742404605974,0.7998,2046.3,2046.0,11.35669977]
[1742404606186,0.7998,2046.3,2046.1,4.88733]
[1742404607002,0.7998,2046.3,2046.1,4.88718]
[1742404607197,4.806,2046.8,2046.3,4.88675]
[1742404607198,4.88597,2046.7,2046.3,4.88675]
[1742404607497,0.55,2046.6,2046.3,4.88675]
[1742404607709,5.43621,2046.6,2046.3,4.88675]
[1742404608000,0.55,2046.6,2046.3,9.77346]
[1742404608199,0.55,2046.6,2046.4,4.88653]
[1742404608723,10.87546,2046.9,2046.3,5.944396]
[1742404608724,5.99,2046.9,2046.5,4.88639]
[1742404608888,4.806,2046.8,2046.6,4.88604]
[1742404609095,0.7974,2046.9,2046.4,4.88658]
[1742404609266,21.7772,2047.0,2046.6,0.7768]
[1742404609466,21.7772,2047.0,2046.6,10.54881]
[1742404609665,16.892,2047.0,2046.7,4.88582]
[1742404609876,21.77721,2047.0,2046.7,4.88582]
[1742404610399,16.892,2047.0,2046.7,4.88582]
[1742404610700,21.77719,2047.0,2046.4,0.7817]
[1742404611017,0.55,2046.8,2046.5,4.88623]
[1742404611172,5.43547,2046.9,2046.6,4.88607]
[1742404611370,9.47907831,2046.9,2046.6,4.88607]
[1742404611564,4.59360831,2046.9,2046.6,4.88604]
[1742404611795,16.892,2047.0,2046.7,4.88573]
[1742404612402,19.41715831,2047.1,2046.3,9.07754231]
[1742404612403,9.69943831,2046.9,2046.5,4.88615]
[1742404612636,4.81390831,2046.9,2046.6,4.88606]
[1742404612833,4.04360831,2046.7,2046.4,9.77305]
[1742404613019,4.04360831,2046.7,2046.5,4.88631]
[1742404613519,4.81390831,2046.9,2046.5,4.88623]
[1742404614216,4.04360831,2046.7,2046.4,4.88647]
[1742404614400,4.04360831,2046.7,2046.3,4.871636]
[1742404614607,4.04360831,2046.7,2046.4,4.88641]
[1742404614792,4.04360831,2046.7,2046.4,9.77287]
[1742404615002,4.04360831,2046.7,2046.4,4.88641]
[1742404615398,0.55,2046.6,2046.2,10.947]
[1742404615599,4.88672,2046.4,2046.2,6.06]
[1742404615797,4.88672,2046.4,2046.1,4.88726]
[1742404616024,4.04360831,2046.3,2046.0,4.88753]
[1742404616400,4.04360831,2046.3,2046.0,4.88741]
[1742404617232,4.04360831,2046.3,2046.0,4.88748]
[1742404617436,4.04360831,2046.3,2046.1,4.88734]
[1742404617669,4.04360831,2046.3,2046.0,4.88748]
[1742404617960,8.93051831,2046.3,2046.0,4.88748]
[1742404618124,8.93051831,2046.3,2045.9,4.88775]
[1742404618324,4.04360831,2046.3,2046.0,4.88747]
[1742404618752,8.93059831,2046.3,2045.9,4.88775]
[1742404619057,8.93059831,2046.3,2045.9,4.8877]
[1742404619256,8.93059831,2046.3,2046.0,4.8875]
[1742404619563,0.55,2046.5,2046.2,4.88688]
[1742404620060,9.48003831,2046.5,2046.2,4.88688]
[1742404620488,4.88673,2046.4,2046.1,0.8001]
[1742404620627,4.88673,2046.4,2046.1,5.68734]
[1742404620830,4.88673,2046.4,2046.1,4.88724]
[1742404621029,4.04360831,2046.3,2046.0,4.88753]
[1742404621269,4.04360831,2046.3,2046.0,4.88744]
[1742404621568,4.04360831,2046.3,2046.1,4.88722]
[1742404622073,8.93060831,2046.3,2045.9,4.88776]
[1742404622283,13.81764831,2046.3,2045.9,4.88776]
[1742404622585,8.93060831,2046.3,2045.9,4.88764]
[1742404623061,8.93060831,2046.3,2046.0,4.88754]
[1742404623261,4.04360831,2046.3,2046.0,4.88753]
[1742404623461,5.356,2046.5,2046.2,9.77399]
[1742404623757,0.7664,2046.6,2046.4,4.88656]
[1742404623967,0.7664,2046.9,2046.6,4.88599]
[1742404624191,0.7664,2046.9,2046.7,4.88582]
[1742404624354,0.7664,2046.9,2046.7,4.88588]
[1742404624550,4.04360831,2047.0,2046.7,4.88579]
[1742404624750,0.7674,2047.1,2046.9,4.88543]
[1742404624985,24.60923831,2047.2,2046.8,4.88554]
[1742404625195,4.04360831,2047.0,2046.8,4.88554]
[1742404625566,4.04360831,2047.0,2046.8,4.88549]
[1742404625766,4.04360831,2047.0,2046.8,4.88555]
[1742404625966,0.55,2047.1,2046.8,9.77107]
[1742404626288,0.55,2047.1,2046.8,9.77103]
[1742404626497,0.55,2047.1,2046.9,4.88539]
[1742404626700,4.04360831,2047.2,2047.0,4.88519]
[1742404626878,21.72540831,2047.5,2047.2,4.88463]
[1742404627050,26.60951831,2047.5,2047.1,4.88495]
[1742404627249,26.60951831,2047.5,2047.1,4.88479]
[1742404627696,0.55,2047.4,2047.1,4.88479]
[1742404627891,0.55,2047.4,2047.1,5.940357]
[1742404628066,4.04360831,2047.3,2047.0,4.88515]
[1742404628283,8.92810831,2047.3,2046.9,5.67095]
[1742404628486,4.04360831,2047.1,2046.8,10.866]
[1742404628683,4.04360831,2046.9,2046.8,15.75167]
[1742404628888,4.04360831,2047.1,2046.8,11.9675499]
[1742404629084,4.04360831,2047.1,2046.8,2.1963899]
[1742404629285,4.04360831,2046.9,2046.7,4.88581]
[1742404630078,9.71609831,2047.1,2046.7,4.88578]
[1742404630279,4.83100831,2047.1,2046.8,4.88567]
[1742404630576,4.04360831,2047.3,2047.0,4.88505]
[1742404630811,5.6942,2047.4,2047.0,4.88505]
[1742404631118,4.04360831,2047.1,2046.9,4.88537]
[1742404632115,4.04360831,2047.1,2046.9,4.88524]
[1742404632928,4.04360831,2047.1,2046.9,9.77048]
[1742404633219,4.04360831,2047.1,2046.9,4.88524]
[1742404634918,4.04360831,2047.1,2046.9,9.77051]
[1742404635138,4.04360831,2047.1,2046.9,4.88524]
[1742404635722,4.04360831,2047.1,2046.8,4.88557]
[1742404636014,4.04360831,2047.1,2046.7,4.88574]
[1742404636222,4.04360831,2047.1,2046.8,4.88564]
[1742404636391,4.04360831,2047.1,2046.8,9.77112]
[1742404636598,4.04360831,2047.1,2046.9,4.88534]
[1742404636998,8.92808831,2047.3,2046.9,4.88534]
[1742404637300,4.04360831,2047.3,2047.0,4.88511]
[1742404637620,4.04360831,2047.3,2046.9,9.77064]
[1742404637937,8.92821831,2047.3,2046.9,4.88531]
[1742404638137,8.92821831,2047.3,2046.9,9.77055]
[1742404638429,8.92821831,2047.3,2046.9,4.88524]
[1742404639222,4.04360831,2047.3,2046.9,4.88524]
[1742404639536,4.04360831,2047.3,2046.9,4.8853]
[1742404639834,8.92809831,2047.3,2046.9,9.77061]
[1742404640036,8.92809831,2047.3,2047.0,4.88518]
[1742404640419,4.04360831,2047.3,2047.0,4.88518]
[1742404640613,4.04360831,2047.3,2047.0,9.77024]
[1742404640803,4.04360831,2047.3,2047.0,4.88506]
[1742404640987,8.92809831,2047.3,2047.0,4.88506]
[1742404641332,0.8099,2047.4,2047.0,0.977046]
[1742404641623,0.7809,2047.6,2047.2,5.69466]
[1742404641821,0.55,2047.4,2047.0,5.69527]
[1742404642026,5.43434,2047.4,2047.0,10.58032]
[1742404642227,5.43434,2047.4,2047.1,4.88491]
[1742404642764,10.31876,2047.4,2047.0,5.69515]
[1742404642966,4.04360831,2047.1,2046.8,11.69675]
[1742404643265,4.04360831,2047.1,2046.9,4.88532]
[1742404643465,4.80370831,2047.3,2047.0,4.88506]
[1742404644272,9.68826831,2047.3,2047.0,4.88506]
[1742404645367,4.80370831,2047.3,2047.0,4.88506]
[1742404645667,4.04360831,2047.3,2047.0,9.77008]
[1742404645877,4.04360831,2047.3,2047.0,4.88504]
[1742404646235,8.92818831,2047.3,2046.9,4.88534]
[1742404646771,5.67751,2047.2,2046.9,4.88542]
[1742404646971,0.7927,2047.2,2046.9,4.88542]
[1742404647539,0.7927,2047.2,2046.9,4.88534]
[1742404647937,4.88507,2047.1,2046.7,7.88589]
[1742404648131,4.88528,2047.0,2046.7,7.88589]
[1742404648337,8.92867831,2047.1,2046.7,12.77166]
[1742404648635,8.92862831,2047.1,2046.7,12.77153]
[1742404648875,8.92862831,2047.1,2046.7,7.88576]
[1742404649168,8.92862831,2047.1,2046.7,12.77153]
[1742404649474,4.88521,2047.0,2046.7,7.88576]
[1742404649972,0.7927,2047.2,2046.9,4.88527]
[1742404650275,9.68764,2047.3,2046.9,9.77058]
[1742404650775,9.68764,2047.3,2047.0,4.88516]
[1742404651159,9.68764,2047.3,2046.9,4.88534]
[1742404651774,9.68764,2047.3,2047.0,4.88516]
[1742404652439,4.803,2047.3,2047.0,4.88516]
[1742404652640,9.6876,2047.3,2046.9,5.66523]
[1742404652979,9.6876,2047.3,2046.9,5.66522]
[1742404653274,9.6876,2047.3,2047.0,4.88513]
[1742404653580,14.57228,2047.3,2046.9,5.66522]
[1742404653779,16.56623883,2047.3,2046.9,5.66522]
[1742404654588,11.68155883,2047.3,2046.9,5.66522]
[1742404654883,4.803,2047.3,2046.9,0.7799]
[1742404655037,5.36730831,2047.4,2047.2,4.88455]
[1742404655466,14.57768831,2047.6,2047.2,4.88455]
[1742404655678,4.88433,2047.4,2046.9,5.66517]
[1742404655890,4.88433,2047.4,2047.0,4.88502]
[1742404655891,4.88448,2047.3,2047.0,4.88502]
[1742404656454,8.92792831,2047.4,2047.0,4.88518]
[1742404656646,10.44075514,2047.4,2047.0,9.77022]
[1742404657071,10.44075514,2047.4,2047.1,4.88493]
[1742404657290,4.04360831,2047.4,2047.1,4.88483]
[1742404657461,4.04360831,2047.4,2047.2,4.88471]
[1742404657660,4.04360831,2047.4,2047.0,4.88517]
[1742404657860,8.92794831,2047.4,2047.0,4.88507]
[1742404658065,4.04360831,2047.4,2047.1,9.76968]
[1742404658691,8.92799831,2047.4,2047.0,4.88511]
[1742404659290,4.04360831,2047.4,2047.1,4.88485]
[1742404659591,4.80990831,2047.6,2047.3,4.88448]
[1742404659801,9.69374831,2047.6,2047.3,4.88448]
[1742404660299,4.04360831,2047.4,2047.2,4.88469]
[1742404660452,8.92802831,2047.4,2047.0,9.77023]
[1742404660654,8.92802831,2047.4,2047.1,4.88492]
[1742404661200,13.81245831,2047.4,2047.0,5.32333235]
[1742404661392,8.92802831,2047.4,2047.0,5.32333235]
[1742404661562,8.92802831,2047.4,2047.1,4.88494]
[1742404662158,4.04360831,2047.4,2047.1,4.88494]
[1742404662360,4.04360831,2047.4,2047.1,9.76973]
[1742404662558,4.04360831,2047.4,2047.1,4.88479]
[1742404663052,4.88452,2047.3,2047.0,4.88517]
[1742404663452,4.04360831,2047.2,2047.0,4.88517]
[1742404663893,4.04360831,2047.2,2047.0,9.77021]
[1742404664061,4.04360831,2047.4,2047.2,4.8847]
[1742404664266,4.04360831,2047.4,2047.1,4.88487]
[1742404664485,4.04360831,2047.4,2047.1,9.76964]
[1742404664855,4.04360831,2047.4,2047.1,4.88482]
[1742404665509,8.92792831,2047.4,2047.1,4.88493]
[1742404665672,4.04360831,2047.4,2047.1,9.7698]
[1742404665867,4.04360831,2047.4,2046.9,0.7799]
[1742404665868,4.04360831,2047.4,2047.2,4.88466]